Department family,Entity,Date,Expense type,Expense area,Supplier,Transaction number,Amount
Department of Health,Royal United Hospital Bath NHS Trust,27/07/2010,Revenue: Non-pay expenditure,General and Vascular Studies,NORTH BRISTOL NHS TRUST,4251245,28606.86 
Department of Health,Royal United Hospital Bath NHS Trust,06/10/2010,Capital Expenditure,Corporate,LETN SOLUTIONS LTD,4260647,35009.13 
Department of Health,Royal United Hospital Bath NHS Trust,01/11/2010,Revenue: Non-pay expenditure,Pathology,ROCHE DIAGNOSTICS LTD,4262644,45310.40 
Department of Health,Royal United Hospital Bath NHS Trust,01/11/2010,Revenue: Non-pay expenditure,Pathology,ROCHE DIAGNOSTICS LTD,4262644,29666.25 
Department of Health,Royal United Hospital Bath NHS Trust,01/11/2010,Revenue: Non-pay expenditure,Paediatrics and Neonatal Intensive Care Unit,ROCHE DIAGNOSTICS LTD,4262644,907.01 
Department of Health,Royal United Hospital Bath NHS Trust,01/11/2010,Revenue: Non-pay expenditure,Emergency Medicine,ROCHE DIAGNOSTICS LTD,4262644,1814.02 
Department of Health,Royal United Hospital Bath NHS Trust,27/10/2010,Revenue: Non-pay expenditure,Pathology,HEALTH PROTECTION AGENCY,4262776,136728.15 
Department of Health,Royal United Hospital Bath NHS Trust,27/10/2010,Revenue: Non-pay expenditure,Genito-Urinary Medicine,HEALTH PROTECTION AGENCY,4262776,1562.01 
Department of Health,Royal United Hospital Bath NHS Trust,25/10/2010,Revenue: Non-pay expenditure,Facilities,E-ZEC MEDICAL TRANSPORT SERVICES LTD,4262794,68538.41 
Department of Health,Royal United Hospital Bath NHS Trust,04/11/2010,Revenue: Non-pay expenditure,General and Vascular Studies,UNIVERSITY OF BATH,4263680,45876.89 
Department of Health,Royal United Hospital Bath NHS Trust,04/11/2010,Revenue: Non-pay expenditure,General and Vascular Studies,UNIVERSITY OF BATH,4263681,44893.50 
Department of Health,Royal United Hospital Bath NHS Trust,17/11/2010,Revenue: Non-pay expenditure,Pathology,HEALTH PROTECTION AGENCY,4263983,136728.15 
Department of Health,Royal United Hospital Bath NHS Trust,17/11/2010,Revenue: Non-pay expenditure,Genito-Urinary Medicine,HEALTH PROTECTION AGENCY,4263983,1562.01 
Department of Health,Royal United Hospital Bath NHS Trust,29/10/2010,Capital Expenditure,Capital Expenditure,POWER ELECTRICS (BRISTOL) LTD,4264183,379940.22 
Department of Health,Royal United Hospital Bath NHS Trust,13/11/2010,Revenue: Non-pay expenditure,Facilities,BRITISH TELECOMMUNICATIONS PLC,4264255,3304.39 
Department of Health,Royal United Hospital Bath NHS Trust,13/11/2010,Revenue: Non-pay expenditure,Facilities,BRITISH TELECOMMUNICATIONS PLC,4264255,26281.61 
Department of Health,Royal United Hospital Bath NHS Trust,13/11/2010,Revenue: Non-pay expenditure,Facilities,BRITISH TELECOMMUNICATIONS PLC,4264255,3254.32 
Department of Health,Royal United Hospital Bath NHS Trust,13/11/2010,Revenue: Non-pay expenditure,Facilities,BRITISH TELECOMMUNICATIONS PLC,4264255,9170.84 
Department of Health,Royal United Hospital Bath NHS Trust,13/11/2010,Revenue: Non-pay expenditure,Facilities,BRISTOL WESSEX BILLING SERVICES LTD,4264256,41999.32 
Department of Health,Royal United Hospital Bath NHS Trust,20/10/2010,Revenue: Non-pay expenditure,Therapy services,OPCARE LTD,4264354,27561.65 
Department of Health,Royal United Hospital Bath NHS Trust,19/11/2010,Balance Sheet,Balance sheet,NHS SUPPLY CHAIN (GOODS),4264711,69363.29 
Department of Health,Royal United Hospital Bath NHS Trust,30/11/2010,Capital Expenditure,Capital Expenditure,M M M MEDICAL EQUIPMENT UK LTD,4265458,79331.18 
Department of Health,Royal United Hospital Bath NHS Trust,26/11/2010,Balance Sheet,Balance sheet,NHS SUPPLY CHAIN (GOODS),4265652,77859.02 
Department of Health,Royal United Hospital Bath NHS Trust,16/10/2010,Revenue: Non-pay expenditure,Facilities,TOTAL GAS & POWER (PREV ELF BUSINESS ENERGY),4265662,31091.21 
Department of Health,Royal United Hospital Bath NHS Trust,23/11/2010,Revenue: Non-pay expenditure,Patient Care Delivery,SOMERSET PCT,4265677,43170.32 
Department of Health,Royal United Hospital Bath NHS Trust,07/12/2010,Revenue: Non-pay expenditure,Theatres,GE HEALTHCARE CLINICAL SYSTEMS (UK) LTD,4265700,46449.13 
Department of Health,Royal United Hospital Bath NHS Trust,25/11/2010,Revenue: Non-pay expenditure,Facilities,E-ZEC MEDICAL TRANSPORT SERVICES LTD,4265748,67293.21 
Department of Health,Royal United Hospital Bath NHS Trust,13/11/2010,Revenue: Non-pay expenditure,Facilities,TOTAL GAS & POWER (PREV ELF BUSINESS ENERGY),4265762,58631.73 
Department of Health,Royal United Hospital Bath NHS Trust,08/12/2010,Revenue: Non-pay expenditure,Facilities,E-ZEC MEDICAL TRANSPORT SERVICES LTD,4265764,74920.08 
Department of Health,Royal United Hospital Bath NHS Trust,31/10/2010,Capital Expenditure,Capital Expenditure,TECHNIGLAZE LTD,4266021,75953.97 
Department of Health,Royal United Hospital Bath NHS Trust,01/12/2010,Revenue: Non-pay expenditure,Pathology,ROCHE DIAGNOSTICS LTD,4266036,29666.25 
Department of Health,Royal United Hospital Bath NHS Trust,01/12/2010,Revenue: Non-pay expenditure,Pathology,ROCHE DIAGNOSTICS LTD,4266036,45310.40 
Department of Health,Royal United Hospital Bath NHS Trust,01/12/2010,Revenue: Non-pay expenditure,Paediatrics and Neonatal Intensive Care Unit,ROCHE DIAGNOSTICS LTD,4266036,907.01 
Department of Health,Royal United Hospital Bath NHS Trust,01/12/2010,Revenue: Non-pay expenditure,Emergency Medicine,ROCHE DIAGNOSTICS LTD,4266036,1814.02 
Department of Health,Royal United Hospital Bath NHS Trust,30/11/2010,Revenue: Non-pay expenditure,Therapy services,OPCARE LTD,4266502,31346.49 
Department of Health,Royal United Hospital Bath NHS Trust,08/12/2010,Revenue: Non-pay expenditure,Balance sheet,HEALTHCARE PRODUCT SERVICES,4266512,25662.00 
Department of Health,Royal United Hospital Bath NHS Trust,09/12/2010,Capital Expenditure,Capital Expenditure,FORD BROTHERS (CE & SC) LTD,4266632,47745.00 
Department of Health,Royal United Hospital Bath NHS Trust,03/12/2010,Balance Sheet,Balance sheet,NHS SUPPLY CHAIN (GOODS),4266920,79817.46 
Department of Health,Royal United Hospital Bath NHS Trust,08/12/2010,Revenue: Non-pay expenditure,Patient Care Delivery,WILTSHIRE PCT,4266926,53734.42 
Department of Health,Royal United Hospital Bath NHS Trust,07/12/2010,Capital Expenditure,Capital Expenditure,VARIAN MEDICAL EQUIPMENT,4267179,733860.09 
Department of Health,Royal United Hospital Bath NHS Trust,01/12/2010,Capital Expenditure,Capital Expenditure,VINCI CONSTRUCTION UK LTD - BUILDING DIVISION,4267409,641458.63 
Department of Health,Royal United Hospital Bath NHS Trust,07/12/2010,Revenue: Non-pay expenditure,Facilities,SOUTHERN ELECTRIC,4267962,32471.81 
Department of Health,Royal United Hospital Bath NHS Trust,14/12/2010,Revenue: Non-pay expenditure,Facilities,BRISTOL WESSEX BILLING SERVICES LTD,4267974,32983.02 
Department of Health,Royal United Hospital Bath NHS Trust,22/12/2010,Capital Expenditure,Capital Expenditure,VINCI CONSTRUCTION UK LTD - BUILDING DIVISION,4268153,370993.70 
